[Event "Early-Titled-Tuesday-Blitz-May-28-2024"]
[Site "Chess.com"]
[Date "2024.05.28"]
[Round "6"]
[White "Polish_fighter3000"]
[Black "francyIM"]
[Result "1/2-1/2"]
[WhiteElo "3099"]
[BlackElo "2820"]
[TimeControl "180+1"]
[EndTime "9:09:15 PDT"]
[Termination "Game drawn - insufficient material"]

1. Nc3 {[%clk 0:03:00.9]} 1... Nf6 {[%clk 0:02:56.9]} 2. e4 {[%clk 0:02:58.6]}
2... d5 {[%clk 0:02:53.5]} 3. e5 {[%clk 0:02:57.3]} 3... Nfd7 {[%clk 0:02:52.7]}
4. d4 {[%clk 0:02:49.9]} 4... e6 {[%clk 0:02:52.9]} 5. f4 {[%clk 0:02:44.2]}
5... c5 {[%clk 0:02:52.5]} 6. Nf3 {[%clk 0:02:44.8]} 6... Nc6 {[%clk 0:02:52.2]}
7. Be3 {[%clk 0:02:45.3]} 7... Be7 {[%clk 0:02:50.2]} 8. Qd2 {[%clk 0:02:40.9]}
8... O-O {[%clk 0:02:42]} 9. a3 {[%clk 0:02:34.7]} 9... f6 {[%clk 0:02:30.9]}
10. exf6 {[%clk 0:02:20.8]} 10... Bxf6 {[%clk 0:02:26.7]} 11. dxc5 {[%clk
0:02:18.5]} 11... b6 {[%clk 0:02:26.4]} 12. Bb5 {[%clk 0:02:15.8]} 12... Bb7
{[%clk 0:02:25.9]} 13. cxb6 {[%clk 0:02:10.2]} 13... Nxb6 {[%clk 0:02:20.4]} 14.
Rd1 {[%clk 0:01:28.3]} 14... Na5 {[%clk 0:02:04.4]} 15. b3 {[%clk 0:01:22.7]}
15... Rc8 {[%clk 0:01:59.5]} 16. Ne2 {[%clk 0:01:22.5]} 16... Nc6 {[%clk
0:01:54.9]} 17. O-O {[%clk 0:01:22.4]} 17... Qd6 {[%clk 0:01:52.6]} 18. a4
{[%clk 0:01:18]} 18... Nd7 {[%clk 0:01:51.4]} 19. Bxc6 {[%clk 0:01:08.6]} 19...
Qxc6 {[%clk 0:01:49]} 20. Ned4 {[%clk 0:01:07]} 20... Qd6 {[%clk 0:01:40.5]} 21.
Nb5 {[%clk 0:01:06.5]} 21... Qe7 {[%clk 0:01:33.9]} 22. Nxa7 {[%clk 0:01:05]}
22... Ra8 {[%clk 0:01:27.8]} 23. Nb5 {[%clk 0:01:04.7]} 23... Ba6 {[%clk
0:01:26.6]} 24. Nfd4 {[%clk 0:01:00.3]} 24... Rfc8 {[%clk 0:01:24.9]} 25. Rfe1
{[%clk 0:00:46.3]} 25... Nc5 {[%clk 0:01:25]} 26. Qe2 {[%clk 0:00:06.6]} 26...
Ne4 {[%clk 0:01:21.5]} 27. c4 {[%clk 0:00:06.3]} 27... dxc4 {[%clk 0:01:19]} 28.
bxc4 {[%clk 0:00:07.2]} 28... Nc5 {[%clk 0:01:17.5]} 29. Bf2 {[%clk 0:00:04.3]}
29... Nxa4 {[%clk 0:01:15.4]} 30. Rc1 {[%clk 0:00:03.4]} 30... Nb6 {[%clk
0:01:09.9]} 31. Qxe6+ {[%clk 0:00:02.4]} 31... Qxe6 {[%clk 0:01:09.9]} 32. Nxe6
{[%clk 0:00:02.9]} 32... Bxb5 {[%clk 0:00:46.2]} 33. cxb5 {[%clk 0:00:03.8]}
33... Rxc1 {[%clk 0:00:46.1]} 34. Rxc1 {[%clk 0:00:03.5]} 34... Nd5 {[%clk
0:00:45.2]} 35. g4 {[%clk 0:00:02.3]} 35... Nc3 {[%clk 0:00:45]} 36. Rxc3 {[%clk
0:00:01.8]} 36... Bxc3 {[%clk 0:00:44.1]} 37. Kg2 {[%clk 0:00:02.3]} 37... Rb8
{[%clk 0:00:42.7]} 38. b6 {[%clk 0:00:01.8]} 38... Ba5 {[%clk 0:00:42.4]} 39.
Bd4 {[%clk 0:00:02.3]} 39... g6 {[%clk 0:00:41]} 40. Kf3 {[%clk 0:00:02.1]}
40... Bxb6 {[%clk 0:00:40.8]} 41. Be5 {[%clk 0:00:02.8]} 41... Rc8 {[%clk
0:00:40.4]} 42. h4 {[%clk 0:00:02.5]} 42... Rc4 {[%clk 0:00:40]} 43. g5 {[%clk
0:00:02.2]} 43... Kf7 {[%clk 0:00:39.4]} 44. f5 {[%clk 0:00:01]} 44... gxf5
{[%clk 0:00:39.3]} 45. Nf4 {[%clk 0:00:01.6]} 45... Bd4 {[%clk 0:00:39.5]} 46.
Bxd4 {[%clk 0:00:01.5]} 46... Rxd4 {[%clk 0:00:39.9]} 47. h5 {[%clk 0:00:01.9]}
47... Re4 {[%clk 0:00:39.7]} 48. Kg3 {[%clk 0:00:01.9]} 48... Re3+ {[%clk
0:00:39.4]} 49. Kf2 {[%clk 0:00:02.3]} 49... Ra3 {[%clk 0:00:39]} 50. Kg2 {[%clk
0:00:02.1]} 50... Ke7 {[%clk 0:00:38.1]} 51. Kf2 {[%clk 0:00:02]} 51... Kd6
{[%clk 0:00:37.8]} 52. g6 {[%clk 0:00:01.9]} 52... hxg6 {[%clk 0:00:38.2]} 53.
hxg6 {[%clk 0:00:01]} 53... Ke7 {[%clk 0:00:37.3]} 54. Nh5 {[%clk 0:00:01.2]}
54... Ra4 {[%clk 0:00:36.7]} 55. Kf3 {[%clk 0:00:01]} 55... Rg4 {[%clk
0:00:36.8]} 56. g7 {[%clk 0:00:01.5]} 56... Kf7 {[%clk 0:00:36.7]} 57. Ng3
{[%clk 0:00:01.7]} 57... Ke6 {[%clk 0:00:34.4]} 58. Nh5 {[%clk 0:00:02.2]} 58...
Ke5 {[%clk 0:00:34.8]} 59. Ke3 {[%clk 0:00:01.7]} 59... Ke6 {[%clk 0:00:27.6]}
60. Kf3 {[%clk 0:00:01.9]} 60... Rg5 {[%clk 0:00:22.3]} 61. Kf4 {[%clk
0:00:01.4]} 61... Rg6 {[%clk 0:00:21.3]} 62. Ng3 {[%clk 0:00:01.4]} 62... Rxg7
{[%clk 0:00:19.3]} 63. Ne2 {[%clk 0:00:01.3]} 63... Rg4+ {[%clk 0:00:19.4]} 64.
Kf3 {[%clk 0:00:01.7]} 64... Ke5 {[%clk 0:00:19.9]} 65. Nc1 {[%clk 0:00:02.1]}
65... Rd4 {[%clk 0:00:19.7]} 66. Ke3 {[%clk 0:00:01.4]} 66... f4+ {[%clk
0:00:20.1]} 67. Kf3 {[%clk 0:00:02]} 67... Rd1 {[%clk 0:00:20.5]} 68. Ne2 {[%clk
0:00:01.9]} 68... Rd3+ {[%clk 0:00:20.8]} 69. Kg4 {[%clk 0:00:02.3]} 69... Ke4
{[%clk 0:00:21.7]} 70. Nxf4 {[%clk 0:00:02.4]} 70... Rd8 {[%clk 0:00:21.3]} 71.
Nh5 {[%clk 0:00:01.2]} 71... Rg8+ {[%clk 0:00:20.7]} 72. Kh4 {[%clk 0:00:01.3]}
72... Kf5 {[%clk 0:00:20.1]} 73. Ng3+ {[%clk 0:00:01.5]} 73... Kf4 {[%clk
0:00:20.7]} 74. Nh5+ {[%clk 0:00:02]} 74... Kf3 {[%clk 0:00:21.3]} 75. Kh3
{[%clk 0:00:01.1]} 75... Rg5 {[%clk 0:00:20.6]} 76. Kh4 {[%clk 0:00:01.1]} 76...
Rg4+ {[%clk 0:00:21.1]} 77. Kh3 {[%clk 0:00:01.4]} 77... Rc4 {[%clk 0:00:20.7]}
78. Nf6 {[%clk 0:00:01.3]} 78... Rc6 {[%clk 0:00:20.5]} 79. Nh5 {[%clk
0:00:01.6]} 79... Rh6 {[%clk 0:00:19.9]} 80. Kh4 {[%clk 0:00:02.5]} 80... Rg6
{[%clk 0:00:17]} 81. Kh3 {[%clk 0:00:02.9]} 81... Rg1 {[%clk 0:00:17.3]} 82. Kh4
{[%clk 0:00:02.9]} 82... Rh1+ {[%clk 0:00:15.4]} 83. Kg5 {[%clk 0:00:03.2]}
83... Rxh5+ {[%clk 0:00:16.3]} 84. Kxh5 {[%clk 0:00:03.5]} 1/2-1/2

[Event "Early-Titled-Tuesday-Blitz-May-28-2024"]
[Site "Chess.com"]
[Date "2024.05.28"]
[Round "6"]
[White "tusplingher"]
[Black "C_K_G"]
[Result "1-0"]
[WhiteElo "2577"]
[BlackElo "2303"]
[TimeControl "180+1"]
[EndTime "9:09:15 PDT"]
[Termination "tusplingher won by checkmate"]

1. c4 {[%clk 0:03:00.9]} 1... e5 {[%clk 0:02:59]} 2. a3 {[%clk 0:02:54.7]} 2...
a5 {[%clk 0:02:53.8]} 3. d3 {[%clk 0:02:52.5]} 3... Bc5 {[%clk 0:02:52.9]} 4.
Nc3 {[%clk 0:02:52]} 4... Nc6 {[%clk 0:02:51.7]} 5. Nf3 {[%clk 0:02:51.7]} 5...
d6 {[%clk 0:02:49.5]} 6. g3 {[%clk 0:02:49.2]} 6... Nge7 {[%clk 0:02:47.7]} 7.
Bg2 {[%clk 0:02:48.5]} 7... Bg4 {[%clk 0:02:43.4]} 8. O-O {[%clk 0:02:48.1]}
8... Qd7 {[%clk 0:02:40]} 9. Ne4 {[%clk 0:02:43.9]} 9... Ba7 {[%clk 0:02:36.1]}
10. b4 {[%clk 0:02:42.5]} 10... axb4 {[%clk 0:02:28.2]} 11. axb4 {[%clk
0:02:40]} 11... Nxb4 {[%clk 0:02:20.7]} 12. Be3 {[%clk 0:02:37.9]} 12... Nbc6
{[%clk 0:02:17]} 13. Bxa7 {[%clk 0:02:33.8]} 13... Rxa7 {[%clk 0:02:17.9]} 14.
Rxa7 {[%clk 0:02:33.4]} 14... Nxa7 {[%clk 0:02:16.4]} 15. Qb1 {[%clk 0:02:31.3]}
15... b6 {[%clk 0:01:48.7]} 16. Qa1 {[%clk 0:02:21.3]} 16... Nac8 {[%clk
0:01:44.7]} 17. d4 {[%clk 0:02:19.9]} 17... Bxf3 {[%clk 0:01:29.1]} 18. Bxf3
{[%clk 0:02:18.8]} 18... exd4 {[%clk 0:01:28.5]} 19. Qxd4 {[%clk 0:02:18.5]}
19... O-O {[%clk 0:01:27.7]} 20. Rd1 {[%clk 0:02:14.3]} 20... Ng6 {[%clk
0:01:20.1]} 21. h4 {[%clk 0:02:08.3]} 21... Qh3 {[%clk 0:01:10.7]} 22. Bg4
{[%clk 0:01:58.5]} 22... c5 {[%clk 0:00:56]} 23. Bxh3 {[%clk 0:01:24.1]} 23...
cxd4 {[%clk 0:00:55.1]} 24. Bxc8 {[%clk 0:01:24.7]} 24... Rxc8 {[%clk 0:00:53]}
25. Nxd6 {[%clk 0:01:25.4]} 25... Rd8 {[%clk 0:00:47.7]} 26. Rxd4 {[%clk
0:01:23.7]} 26... Ne5 {[%clk 0:00:40.7]} 27. f4 {[%clk 0:01:19.2]} 27... Nc6
{[%clk 0:00:37.8]} 28. Rd5 {[%clk 0:01:14.7]} 28... Kf8 {[%clk 0:00:31.6]} 29.
Nb5 {[%clk 0:01:04.6]} 29... Re8 {[%clk 0:00:25.7]} 30. Kf2 {[%clk 0:01:02.5]}
30... Na5 {[%clk 0:00:23.7]} 31. Nd6 {[%clk 0:00:43.9]} 31... Rd8 {[%clk
0:00:22.1]} 32. e4 {[%clk 0:00:37.5]} 32... g6 {[%clk 0:00:20.8]} 33. Kf3 {[%clk
0:00:31.3]} 33... Rd7 {[%clk 0:00:17.1]} 34. Nb5 {[%clk 0:00:20.5]} 34... Re7
{[%clk 0:00:14.1]} 35. c5 {[%clk 0:00:19.5]} 35... bxc5 {[%clk 0:00:12.6]} 36.
Rxc5 {[%clk 0:00:19.8]} 36... Nb3 {[%clk 0:00:11.8]} 37. Rc8+ {[%clk 0:00:19.3]}
37... Kg7 {[%clk 0:00:11.4]} 38. e5 {[%clk 0:00:19.7]} 38... Nd2+ {[%clk
0:00:10]} 39. Ke2 {[%clk 0:00:18.8]} 39... Nb3 {[%clk 0:00:08.7]} 40. Nd6 {[%clk
0:00:18.1]} 40... f6 {[%clk 0:00:06.1]} 41. Ne8+ {[%clk 0:00:17.3]} 41... Kf7
{[%clk 0:00:04.6]} 42. Nxf6 {[%clk 0:00:18]} 42... Nd4+ {[%clk 0:00:04.6]} 43.
Kf2 {[%clk 0:00:17.8]} 43... h5 {[%clk 0:00:04.1]} 44. Ne4 {[%clk 0:00:17.1]}
44... Nf5 {[%clk 0:00:02.4]} 45. Nd6+ {[%clk 0:00:15]} 45... Nxd6 {[%clk
0:00:01.9]} 46. exd6 {[%clk 0:00:15.8]} 46... Rd7 {[%clk 0:00:01.7]} 47. Rc6
{[%clk 0:00:14.8]} 47... Ke6 {[%clk 0:00:02.6]} 48. Kf3 {[%clk 0:00:14.5]} 48...
Ra7 {[%clk 0:00:01.8]} 49. d7+ {[%clk 0:00:13.8]} 49... Kxd7 {[%clk 0:00:01.6]}
50. Rxg6 {[%clk 0:00:14.3]} 50... Ra3+ {[%clk 0:00:02]} 51. Kg2 {[%clk
0:00:14.6]} 51... Ra5 {[%clk 0:00:01]} 52. Rg5 {[%clk 0:00:14.3]} 52... Ra2+
{[%clk 0:00:01]} 53. Kh3 {[%clk 0:00:13.8]} 53... Ke6 {[%clk 0:00:01.9]} 54.
Rxh5 {[%clk 0:00:13.5]} 54... Kf6 {[%clk 0:00:02.4]} 55. Rb5 {[%clk 0:00:13.2]}
55... Kg6 {[%clk 0:00:02.2]} 56. Kg4 {[%clk 0:00:13.3]} 56... Ra6 {[%clk
0:00:01.1]} 57. Re5 {[%clk 0:00:11.7]} 57... Kh6 {[%clk 0:00:01.3]} 58. f5
{[%clk 0:00:10]} 58... Ra4+ {[%clk 0:00:01.5]} 59. Kh3 {[%clk 0:00:10]} 59...
Kh5 {[%clk 0:00:01.1]} 60. f6+ {[%clk 0:00:08]} 60... Kg6 {[%clk 0:00:01.2]} 61.
f7 {[%clk 0:00:06.6]} 61... Kxf7 {[%clk 0:00:01.1]} 62. Rg5 {[%clk 0:00:07]}
62... Kf6 {[%clk 0:00:01.1]} 63. Rg4 {[%clk 0:00:06.9]} 63... Ra3 {[%clk
0:00:00.9]} 64. Rf4+ {[%clk 0:00:07.1]} 64... Kg6 {[%clk 0:00:01.3]} 65. Kg4
{[%clk 0:00:07.7]} 65... Ra5 {[%clk 0:00:01]} 66. Re4 {[%clk 0:00:08.1]} 66...
Ra3 {[%clk 0:00:01.3]} 67. Re6+ {[%clk 0:00:07.6]} 67... Kg7 {[%clk 0:00:01.4]}
68. h5 {[%clk 0:00:07.6]} 68... Kh7 {[%clk 0:00:01.2]} 69. Kh4 {[%clk
0:00:07.4]} 69... Ra4+ {[%clk 0:00:01]} 70. g4 {[%clk 0:00:07.7]} 70... Rb4
{[%clk 0:00:01.9]} 71. Rf6 {[%clk 0:00:07.1]} 71... Kg7 {[%clk 0:00:01.8]} 72.
Rf5 {[%clk 0:00:07.6]} 72... Kh7 {[%clk 0:00:02.7]} 73. Kg5 {[%clk 0:00:07.9]}
73... Kg7 {[%clk 0:00:02.3]} 74. h6+ {[%clk 0:00:08.2]} 74... Kh7 {[%clk
0:00:02.7]} 75. Kh5 {[%clk 0:00:08.9]} 75... Rb7 {[%clk 0:00:02.6]} 76. g5
{[%clk 0:00:08.9]} 76... Ra7 {[%clk 0:00:02.7]} 77. Re5 {[%clk 0:00:08.9]} 77...
Rb7 {[%clk 0:00:01.9]} 78. g6+ {[%clk 0:00:09.2]} 78... Kg8 {[%clk 0:00:02.3]}
79. Re8# {[%clk 0:00:09.9]} 1-0

[Event "Early-Titled-Tuesday-Blitz-May-28-2024"]
[Site "Chess.com"]
[Date "2024.05.28"]
[Round "6"]
[White "DominguezOnYoutube"]
[Black "HamedWafa4"]
[Result "1/2-1/2"]
[WhiteElo "2982"]
[BlackElo "2780"]
[TimeControl "180+1"]
[EndTime "9:09:24 PDT"]
[Termination "Game drawn by repetition"]

1. e4 {[%clk 0:03:00.9]} 1... e5 {[%clk 0:02:55.3]} 2. Nf3 {[%clk 0:03:00.8]}
2... Nc6 {[%clk 0:02:55.2]} 3. Bb5 {[%clk 0:03:01.3]} 3... a6 {[%clk 0:02:43.6]}
4. Ba4 {[%clk 0:03:00.9]} 4... Nf6 {[%clk 0:02:37.5]} 5. O-O {[%clk 0:03:00.7]}
5... Be7 {[%clk 0:02:37.3]} 6. d3 {[%clk 0:03:00.4]} 6... b5 {[%clk 0:02:37.4]}
7. Bb3 {[%clk 0:03:00]} 7... d6 {[%clk 0:02:38.3]} 8. c3 {[%clk 0:02:59.7]} 8...
O-O {[%clk 0:02:38.1]} 9. h3 {[%clk 0:03:00]} 9... h6 {[%clk 0:02:37.2]} 10. Re1
{[%clk 0:02:59.6]} 10... Re8 {[%clk 0:02:37.4]} 11. Nbd2 {[%clk 0:02:59.2]}
11... Bf8 {[%clk 0:02:37.3]} 12. Nf1 {[%clk 0:02:58.7]} 12... Ne7 {[%clk
0:02:36.1]} 13. Ng3 {[%clk 0:02:57.6]} 13... Ng6 {[%clk 0:02:36]} 14. d4 {[%clk
0:02:55.8]} 14... Bb7 {[%clk 0:02:34.3]} 15. Bc2 {[%clk 0:02:55.3]} 15... c5
{[%clk 0:02:33.9]} 16. d5 {[%clk 0:02:53.4]} 16... Nh7 {[%clk 0:02:32.7]} 17.
Be3 {[%clk 0:02:49.8]} 17... Be7 {[%clk 0:02:28.2]} 18. Nf5 {[%clk 0:02:44]}
18... Bf6 {[%clk 0:02:24.7]} 19. a4 {[%clk 0:02:42.4]} 19... Ng5 {[%clk
0:02:19.6]} 20. b3 {[%clk 0:02:23.4]} 20... Nxf3+ {[%clk 0:02:05.6]} 21. Qxf3
{[%clk 0:02:24.3]} 21... Nh4 {[%clk 0:02:00.8]} 22. Nxh4 {[%clk 0:02:22.9]}
22... Bxh4 {[%clk 0:02:01.7]} 23. Bd3 {[%clk 0:02:09.1]} 23... Qd7 {[%clk
0:01:50]} 24. axb5 {[%clk 0:01:49.9]} 24... axb5 {[%clk 0:01:49.4]} 25. Qg4
{[%clk 0:01:49.9]} 25... Qxg4 {[%clk 0:01:22.9]} 26. hxg4 {[%clk 0:01:50.8]}
26... Reb8 {[%clk 0:00:57.9]} 27. Rxa8 {[%clk 0:01:49.2]} 27... Bxa8 {[%clk
0:00:50.6]} 28. Ra1 {[%clk 0:01:47.1]} 28... b4 {[%clk 0:00:42.4]} 29. cxb4
{[%clk 0:01:44.4]} 29... cxb4 {[%clk 0:00:42.5]} 30. Ra7 {[%clk 0:01:35.4]}
30... Kf8 {[%clk 0:00:40.6]} 31. g3 {[%clk 0:01:29.2]} 31... Be7 {[%clk
0:00:39.5]} 32. f4 {[%clk 0:01:27.6]} 32... f6 {[%clk 0:00:33.1]} 33. Kf2 {[%clk
0:01:26.5]} 33... Bb7 {[%clk 0:00:32]} 34. Kf3 {[%clk 0:01:15.4]} 34... Bc8
{[%clk 0:00:29]} 35. Bd2 {[%clk 0:01:12.1]} 35... Ke8 {[%clk 0:00:14.9]} 36. Bc4
{[%clk 0:01:01.2]} 36... Bd7 {[%clk 0:00:14.1]} 37. Ba6 {[%clk 0:00:55.1]} 37...
Bd8 {[%clk 0:00:11.3]} 38. Be3 {[%clk 0:00:53.5]} 38... Bb6 {[%clk 0:00:09.8]}
39. Bxb6 {[%clk 0:00:53.4]} 39... Rxb6 {[%clk 0:00:10.7]} 40. Ra8+ {[%clk
0:00:53.8]} 40... Ke7 {[%clk 0:00:09.8]} 41. Bc4 {[%clk 0:00:54.3]} 41... Rb7
{[%clk 0:00:09.1]} 42. Rg8 {[%clk 0:00:49]} 42... Kf7 {[%clk 0:00:09.1]} 43. Ra8
{[%clk 0:00:49.3]} 43... Ke7 {[%clk 0:00:09.5]} 44. f5 {[%clk 0:00:46.9]} 44...
Be8 {[%clk 0:00:09.1]} 45. Ke3 {[%clk 0:00:45.7]} 45... h5 {[%clk 0:00:08.1]}
46. gxh5 {[%clk 0:00:45.2]} 46... Bxh5 {[%clk 0:00:09]} 47. Rh8 {[%clk
0:00:38.9]} 47... Be8 {[%clk 0:00:08.9]} 48. Rh2 {[%clk 0:00:27.7]} 48... Ra7
{[%clk 0:00:09.1]} 49. Rc2 {[%clk 0:00:27.3]} 49... Ra3 {[%clk 0:00:07.8]} 50.
Rb2 {[%clk 0:00:21.8]} 50... Bh5 {[%clk 0:00:06.9]} 51. Rb1 {[%clk 0:00:18.7]}
51... Be8 {[%clk 0:00:06.2]} 52. Rc1 {[%clk 0:00:18.5]} 52... Ba4 {[%clk
0:00:05.6]} 53. Rb1 {[%clk 0:00:18.6]} 53... Be8 {[%clk 0:00:05.8]} 54. g4
{[%clk 0:00:18.9]} 54... Bd7 {[%clk 0:00:03.1]} 55. Kf3 {[%clk 0:00:18.8]} 55...
Be8 {[%clk 0:00:02.9]} 56. Kg3 {[%clk 0:00:19.1]} 56... g5 {[%clk 0:00:02.9]}
57. Kf3 {[%clk 0:00:16.6]} 57... Ra2 {[%clk 0:00:02.6]} 58. Rh1 {[%clk
0:00:15.3]} 58... Ra3 {[%clk 0:00:02.5]} 59. Rh7+ {[%clk 0:00:14.9]} 59... Kf8
{[%clk 0:00:02.1]} 60. Rb7 {[%clk 0:00:13.9]} 60... Ra1 {[%clk 0:00:01.4]} 61.
Rxb4 {[%clk 0:00:13.6]} 61... Ke7 {[%clk 0:00:01.3]} 62. Rb7+ {[%clk 0:00:13.1]}
62... Kd8 {[%clk 0:00:02]} 63. Rb8+ {[%clk 0:00:12.4]} 63... Ke7 {[%clk
0:00:01.9]} 64. b4 {[%clk 0:00:12.3]} 64... Rb1 {[%clk 0:00:02.1]} 65. b5 {[%clk
0:00:12.2]} 65... Rc1 {[%clk 0:00:02.7]} 66. Be2 {[%clk 0:00:11.9]} 66... Rc3+
{[%clk 0:00:03]} 67. Kf2 {[%clk 0:00:12.3]} 67... Rc2 {[%clk 0:00:01.5]} 68. Ke3
{[%clk 0:00:11.2]} 68... Rc3+ {[%clk 0:00:01.9]} 69. Kd2 {[%clk 0:00:11.6]}
69... Rb3 {[%clk 0:00:02.3]} 70. b6 {[%clk 0:00:11.8]} 70... Rb2+ {[%clk
0:00:02.9]} 71. Ke1 {[%clk 0:00:11]} 71... Rb1+ {[%clk 0:00:02.9]} 72. Kf2
{[%clk 0:00:11.4]} 72... Rb2 {[%clk 0:00:03.8]} 73. b7 {[%clk 0:00:04.4]} 73...
Bb5 {[%clk 0:00:01]} 74. Kg3 {[%clk 0:00:05]} 74... Bxe2 {[%clk 0:00:01]} 75.
Rh8 {[%clk 0:00:04.5]} 75... Rb3+ {[%clk 0:00:01.4]} 76. Kf2 {[%clk 0:00:04.2]}
76... Rxb7 {[%clk 0:00:01.4]} 77. Rh7+ {[%clk 0:00:04.8]} 77... Kf8 {[%clk
0:00:02.1]} 78. Rxb7 {[%clk 0:00:05.4]} 78... Bxg4 {[%clk 0:00:03]} 79. Ke3
{[%clk 0:00:05.8]} 79... Ke8 {[%clk 0:00:02.6]} 80. Rb6 {[%clk 0:00:05.6]} 80...
Ke7 {[%clk 0:00:02.8]} 81. Ra6 {[%clk 0:00:06.2]} 81... Bh3 {[%clk 0:00:03]} 82.
Ra7+ {[%clk 0:00:06.8]} 82... Ke8 {[%clk 0:00:03.3]} 83. Rh7 {[%clk 0:00:06.8]}
83... Bg4 {[%clk 0:00:03.1]} 84. Rh6 {[%clk 0:00:06.8]} 84... Ke7 {[%clk
0:00:03.3]} 85. Rh1 {[%clk 0:00:07.2]} 85... Ke8 {[%clk 0:00:02.7]} 86. Rb1
{[%clk 0:00:05]} 86... Ke7 {[%clk 0:00:02.6]} 87. Rb7+ {[%clk 0:00:04.7]} 87...
Ke8 {[%clk 0:00:03.2]} 88. Kf2 {[%clk 0:00:05.2]} 88... Bd1 {[%clk 0:00:01.9]}
89. Ke3 {[%clk 0:00:04.2]} 89... Bg4 {[%clk 0:00:02]} 1/2-1/2

[Event "Early-Titled-Tuesday-Blitz-May-28-2024"]
[Site "Chess.com"]
[Date "2024.05.28"]
[Round "7"]
[White "toninhojit"]
[Black "ThetNaung291"]
[Result "1-0"]
[WhiteElo "2527"]
[BlackElo "2345"]
[TimeControl "180+1"]
[EndTime "9:13:32 PDT"]
[Termination "toninhojit won by resignation"]

1. e4 {[%clk 0:03:00.9]} 1... c5 {[%clk 0:02:58.7]} 2. Nf3 {[%clk 0:03:00.8]}
2... d6 {[%clk 0:02:58.1]} 3. d4 {[%clk 0:03:00.9]} 3... cxd4 {[%clk 0:02:57.9]}
4. Nxd4 {[%clk 0:03:01.8]} 4... Nf6 {[%clk 0:02:56.5]} 5. Nc3 {[%clk 0:03:01.8]}
5... a6 {[%clk 0:02:56.4]} 6. Bg5 {[%clk 0:03:01.3]} 6... Nbd7 {[%clk 0:02:56]}
7. Bc4 {[%clk 0:03:00.4]} 7... Qc7 {[%clk 0:02:52.9]} 8. Bb3 {[%clk 0:03:00.2]}
8... h6 {[%clk 0:02:50.2]} 9. Bh4 {[%clk 0:02:56.2]} 9... g5 {[%clk 0:02:45.7]}
10. Bg3 {[%clk 0:02:56.3]} 10... Nc5 {[%clk 0:02:41.9]} 11. Qe2 {[%clk 0:02:56]}
11... Nxb3 {[%clk 0:02:37]} 12. axb3 {[%clk 0:02:55.6]} 12... Bg7 {[%clk
0:02:25.3]} 13. e5 {[%clk 0:02:55.8]} 13... dxe5 {[%clk 0:02:24.5]} 14. Bxe5
{[%clk 0:02:56.7]} 14... Qb6 {[%clk 0:02:12.3]} 15. O-O-O {[%clk 0:02:28.9]}
15... Bg4 {[%clk 0:02:07]} 16. f3 {[%clk 0:02:27.8]} 16... Bf5 {[%clk
0:02:05.9]} 17. Nxf5 {[%clk 0:02:26.8]} 1-0

[Event "Early-Titled-Tuesday-Blitz-May-28-2024"]
[Site "Chess.com"]
[Date "2024.05.28"]
[Round "7"]
[White "dropstoneDP"]
[Black "Kildepiotr"]
[Result "1-0"]
[WhiteElo "2973"]
[BlackElo "2743"]
[TimeControl "180+1"]
[EndTime "9:13:36 PDT"]
[Termination "dropstoneDP won by resignation"]

1. e4 {[%clk 0:03:00.9]} 1... c6 {[%clk 0:02:55.9]} 2. Nc3 {[%clk 0:02:59.7]}
2... d5 {[%clk 0:02:56.1]} 3. Nf3 {[%clk 0:02:59.9]} 3... Bg4 {[%clk 0:02:56.1]}
4. h3 {[%clk 0:02:59.7]} 4... Bxf3 {[%clk 0:02:56.5]} 5. Qxf3 {[%clk 0:02:59.1]}
5... Nf6 {[%clk 0:02:57.1]} 6. d4 {[%clk 0:02:58.1]} 6... dxe4 {[%clk
0:02:56.6]} 7. Qe3 {[%clk 0:02:58.6]} 7... Nbd7 {[%clk 0:02:55.8]} 8. Nxe4
{[%clk 0:02:58.1]} 8... Nxe4 {[%clk 0:02:56.7]} 9. Qxe4 {[%clk 0:02:59]} 9...
Nf6 {[%clk 0:02:57.1]} 10. Qd3 {[%clk 0:02:59.6]} 10... e6 {[%clk 0:02:57.5]}
11. Be2 {[%clk 0:02:59.6]} 11... Be7 {[%clk 0:02:57.4]} 12. O-O {[%clk
0:03:00.1]} 12... O-O {[%clk 0:02:57.5]} 13. Rd1 {[%clk 0:03:00.7]} 13... Qb6
{[%clk 0:02:56.1]} 14. Qb3 {[%clk 0:02:59.4]} 14... Rfd8 {[%clk 0:02:53.9]} 15.
c3 {[%clk 0:02:56.4]} 15... Qc7 {[%clk 0:02:50]} 16. g3 {[%clk 0:02:51.7]} 16...
c5 {[%clk 0:02:45.9]} 17. Bf4 {[%clk 0:02:51.1]} 17... Qc6 {[%clk 0:02:46.2]}
18. Rac1 {[%clk 0:02:31.3]} 18... b6 {[%clk 0:02:36.5]} 19. Bf1 {[%clk
0:02:29.5]} 19... cxd4 {[%clk 0:02:15.7]} 20. Bg2 {[%clk 0:02:27.8]} 20... Qc8
{[%clk 0:02:00.8]} 21. cxd4 {[%clk 0:02:24.9]} 1-0

[Event "Early-Titled-Tuesday-Blitz-May-28-2024"]
[Site "Chess.com"]
[Date "2024.05.28"]
[Round "7"]
[White "1stSecond"]
[Black "vi_pranav"]
[Result "0-1"]
[WhiteElo "2924"]
[BlackElo "3050"]
[TimeControl "180+1"]
[EndTime "9:14:16 PDT"]
[Termination "vi_pranav won by resignation"]

1. d4 {[%clk 0:03:00.9]} 1... Nf6 {[%clk 0:02:59.5]} 2. Bg5 {[%clk 0:03:01.3]}
2... Ne4 {[%clk 0:02:59.3]} 3. h4 {[%clk 0:03:01.5]} 3... c5 {[%clk 0:02:59.5]}
4. Nd2 {[%clk 0:02:59.7]} 4... Nxd2 {[%clk 0:02:59.1]} 5. Bxd2 {[%clk
0:02:59.2]} 5... cxd4 {[%clk 0:03:00]} 6. c3 {[%clk 0:02:59.8]} 6... Nc6 {[%clk
0:02:58]} 7. cxd4 {[%clk 0:02:59]} 7... Nxd4 {[%clk 0:02:54.9]} 8. Nf3 {[%clk
0:02:59.4]} 8... Nxf3+ {[%clk 0:02:54.8]} 9. exf3 {[%clk 0:03:00.3]} 9... e6
{[%clk 0:02:51.3]} 10. Bc3 {[%clk 0:02:59.4]} 10... d6 {[%clk 0:02:46.8]} 11. h5
{[%clk 0:02:59.1]} 11... h6 {[%clk 0:02:46.6]} 12. Qb3 {[%clk 0:02:53.3]} 12...
a6 {[%clk 0:02:35.5]} 13. f4 {[%clk 0:02:46.9]} 13... b5 {[%clk 0:02:32]} 14. a4
{[%clk 0:02:40.8]} 14... Bd7 {[%clk 0:01:40.9]} 15. axb5 {[%clk 0:02:40.6]}
15... axb5 {[%clk 0:01:41.8]} 16. Bxb5 {[%clk 0:02:40.7]} 16... Rxa1+ {[%clk
0:01:41.3]} 17. Kd2 {[%clk 0:02:18]} 17... Rxh1 {[%clk 0:01:39.3]} 18. Bxd7+
{[%clk 0:02:14.4]} 18... Qxd7 {[%clk 0:01:40.2]} 19. Qb8+ {[%clk 0:02:14.2]}
19... Ke7 {[%clk 0:01:39.7]} 20. b4 {[%clk 0:02:02]} 20... Rxh5 {[%clk
0:01:38.2]} 0-1